bitfinex-derivatives/quotes_BTCF0:USTF0_20210404
["timestamp","ask_amount","ask_price","bid_price","bid_amount"]
[1617537292225,0.00501952,57416.0,57415.0,0.42758966]
[1617537292424,0.00501952,57416.0,57415.0,1.42758966]
[1617537293127,0.00206239,57420.0,57415.0,1.06126259]
[1617537293528,0.00206239,57420.0,57416.0,1.0]
[1617537293929,0.00206239,57420.0,57419.0,1.16893]
[1617537294328,0.00206239,57420.0,57419.0,1.66893]
[1617537294529,0.00206279,57421.0,57419.0,2.66893]
[1617537294729,0.00206279,57421.0,57420.0,0.10725655]
[1617537294930,0.00206301,57422.0,57421.0,0.2]
[1617537295129,0.00206301,57422.0,57420.0,1.10725655]
[1617537295329,0.00206301,57422.0,57421.0,1.0]
[1617537295530,0.0020635,57423.0,57421.0,1.0]
[1617537295929,0.0020635,57423.0,57420.0,0.10725655]
[1617537296329,0.0020635,57423.0,57422.0,1.0]
[1617537296829,0.0020635,57423.0,57422.0,1.2]
[1617537297831,0.0020635,57423.0,57422.0,1.0]
[1617537299034,0.00501018,57424.0,57422.0,1.0]
[1617537299233,0.00501018,57424.0,57421.0,1.0]
[1617537299635,0.00501018,57424.0,57420.0,0.10725655]
[1617537299833,0.00206276,57422.0,57420.0,0.10725655]
[1617537300636,0.0099153,57421.0,57420.0,0.10725655]
[1617537301235,0.1329423,57421.0,57420.0,0.10725655]
[1617537302237,0.13088,57421.0,57420.0,0.10725655]
[1617537302437,3.27238,57421.0,57420.0,0.10725655]
[1617537303438,3.9199807,57421.0,57420.0,0.10725655]
[1617537304941,4.02723725,57421.0,57414.0,0.10725655]
[1617537305341,0.29427968,57415.0,57414.0,0.10725655]
[1617537306844,0.40153623,57415.0,57414.0,0.10725655]
[1617537309646,0.10725655,57415.0,57414.0,0.10725655]
[1617537310445,0.40157102,57415.0,57414.0,0.10725655]
[1617537314049,0.40157102,57415.0,57414.0,3.80655655]
[1617537315352,0.40157102,57415.0,57414.0,0.10725655]
[1617537316454,0.40157102,57415.0,57414.0,3.02725655]
[1617537316954,0.40157102,57415.0,57414.0,0.21062655]
[1617537317155,3.73361102,57415.0,57408.0,0.36571974]
[1617537317355,4.73361102,57415.0,57408.0,0.36571974]
[1617537317557,5.57648288,57415.0,57406.0,0.0002]
[1617537317754,6.00771737,57415.0,57406.0,0.0002]
[1617537318155,0.64677565,57407.0,57406.0,0.0002]
[1617537318555,1.07806363,57407.0,57406.0,0.0002]
[1617537318854,1.18532018,57407.0,57406.0,0.0002]
[1617537319654,1.43047154,57407.0,57406.0,0.0002]
[1617537324157,1.48227154,57407.0,57406.0,0.0002]
[1617537326461,1.43047154,57407.0,57406.0,0.0002]
[1617537339775,2.93047154,57407.0,57406.0,0.0002]
[1617537340174,2.93047154,57407.0,57392.0,0.0002]
[1617537340175,4.41942148,57407.0,57392.0,0.0002]
[1617537340374,3.41942148,57407.0,57392.0,0.0002]
[1617537340575,4.41942148,57407.0,57392.0,0.0002]
[1617537340777,0.6450442,57393.0,57392.0,0.0002]
[1617537340974,0.85742075,57393.0,57392.0,0.0002]
[1617537341175,1.85742075,57393.0,57392.0,0.0002]
[1617537341576,1.1026245,57393.0,57392.0,0.0002]
[1617537341776,2.1026245,57393.0,57392.0,0.0002]
[1617537342978,1.1026245,57393.0,57392.0,0.0002]
[1617537345179,0.75079109,57393.0,57392.0,0.0002]
[1617537345583,1.10167853,57393.0,57392.0,0.0002]
[1617537346187,0.50558734,57393.0,57392.0,0.0002]
[1617537346586,0.85668058,57393.0,57392.0,0.0002]
[1617537347397,1.10188522,57393.0,57392.0,0.0002]
[1617537347792,0.85668058,57393.0,57392.0,0.0002]
[1617537348396,0.50558734,57393.0,57392.0,0.0002]
[1617537349083,0.85672397,57393.0,57392.0,0.0002]
[1617537349483,1.10193128,57393.0,57392.0,0.0002]
[1617537350083,0.85672397,57393.0,57392.0,0.0002]
[1617537350282,1.10193075,57393.0,57392.0,0.0002]
[1617537350782,0.85672397,57393.0,57392.0,0.0002]
[1617537351184,1.10193166,57393.0,57392.0,0.0002]
[1617537353386,2.10193166,57393.0,57392.0,0.0002]
[1617537353788,2.5319325,57393.0,57392.0,0.0002]
[1617537353984,1.5319325,57393.0,57392.0,0.0002]
[1617537354884,3.0319325,57393.0,57392.0,0.0002]
[1617537355091,3.0847325,57393.0,57392.0,0.0002]
[1617537355288,4.0847325,57393.0,57392.0,0.0002]
[1617537355496,4.45254994,57393.0,57392.0,0.0002]
[1617537356289,3.45254994,57393.0,57392.0,0.0002]
[1617537356487,4.45254994,57393.0,57392.0,0.0002]
[1617537357088,6.2582012,57393.0,57367.0,0.10725655]
[1617537357288,5.1608,57385.0,57367.0,0.10725655]
[1617537357490,11.2582012,57393.0,57367.0,0.10725655]
[1617537357491,1.0,57368.0,57367.0,0.10725655]
[1617537357689,1.12239,57368.0,57367.0,0.10725655]
[1617537357891,1.76634605,57368.0,57367.0,0.10725655]
[1617537358290,2.01162637,57368.0,57367.0,0.10725655]
[1617537358691,2.06412637,57368.0,57367.0,0.10725655]
[1617537359091,2.17138292,57368.0,57367.0,0.10725655]
[1617537359292,1.11888292,57368.0,57367.0,0.10725655]
[1617537361595,2.11888292,57368.0,57367.0,0.10725655]
[1617537363694,1.11888292,57368.0,57367.0,0.10725655]
[1617537366398,0.52236271,57368.0,57367.0,0.10725655]
[1617537367097,1.52236271,57368.0,57367.0,0.10725655]
[1617537367698,0.52236271,57368.0,57367.0,0.10725655]
[1617537368101,1.52236271,57368.0,57367.0,0.10725655]
[1617537369801,2.02236271,57368.0,57367.0,0.10725655]
[1617537370001,2.07406271,57368.0,57367.0,0.10725655]
[1617537370203,3.07406271,57368.0,57342.0,0.36452069]
[1617537370402,3.3078,57343.0,57342.0,0.36452069]
[1617537370604,3.3078,57343.0,57336.0,0.3645281]
[1617537370605,3.45168,57343.0,57336.0,0.3645281]
[1617537371004,3.45168,57343.0,57335.0,0.36454249]
[1617537371202,3.45168,57343.0,57342.0,0.10725655]
[1617537371806,4.45168,57343.0,57334.0,0.36454901]
[1617537372004,4.45168,57343.0,57332.0,0.36456553]
[1617537372404,4.45168,57343.0,57333.0,0.36517564]
[1617537372606,1.0,57340.0,57333.0,0.36517564]
[1617537372805,1.0,57340.0,57333.0,0.42651386]
[1617537373004,1.0,57336.0,57333.0,0.42651386]
[1617537373204,1.0,57336.0,57329.0,0.44633509]
[1617537373205,0.10725655,57334.0,57330.0,0.36518984]
[1617537373409,1.5,57333.0,57330.0,0.36518984]
[1617537373605,1.5,57333.0,57330.0,0.29438984]
[1617537373606,3.0063,57331.0,57330.0,0.29438984]
[1617537373806,3.14285,57331.0,57330.0,0.25148984]
[1617537374206,3.14285,57331.0,57307.0,0.14313316]
[1617537374207,3.14285,57331.0,57316.0,0.44660757]
[1617537374406,5.64285,57331.0,57316.0,0.44660757]
[1617537374607,5.64285,57331.0,57316.0,0.0002]
[1617537374808,0.93864657,57318.0,57316.0,0.0002]
[1617537375007,1.06690657,57318.0,57316.0,0.0002]
[1617537375209,0.10725655,57317.0,57308.0,0.36312786]
[1617537375417,1.10725655,57317.0,57308.0,0.36312786]
[1617537375608,1.10725655,57317.0,57306.0,0.44647971]
[1617537376009,0.10725655,57317.0,57298.0,0.5073683]
[1617537376609,0.10725655,57317.0,57299.0,0.2]
[1617537377010,0.10725655,57317.0,57299.0,0.33885]
[1617537377219,0.10929265,57323.0,57316.0,0.10725655]
[1617537377410,0.10725655,57323.0,57302.0,1.0]
[1617537377623,3.2822,57306.0,57302.0,1.0]
[1617537377818,3.2822,57306.0,57296.0,0.0002]
[1617537379212,3.2822,57306.0,57305.0,0.10725655]
[1617537382512,3.2822,57306.0,57296.0,0.0002]
[1617537382713,1.0,57306.0,57296.0,0.0002]
[1617537383113,1.0,57302.0,57296.0,0.0002]
[1617537383314,0.10725655,57297.0,57296.0,0.0002]
[1617537383715,1.10725655,57297.0,57296.0,0.0002]
[1617537384317,0.10725655,57297.0,57296.0,0.0002]
[1617537384516,0.7754,57297.0,57296.0,0.0002]
[1617537384716,1.0,57312.0,57296.0,0.13376]
[1617537384917,0.00201904,57315.0,57296.0,0.13376]
[1617537384918,0.00201904,57315.0,57297.0,1.7]
[1617537385115,0.00490339,57316.0,57297.0,1.7]
[1617537385316,0.00202399,57325.0,57315.0,0.22653655]
[1617537385517,3.3844,57327.0,57315.0,0.22653655]
[1617537386919,3.3844,57327.0,57316.0,1.0]
[1617537387117,3.3844,57327.0,57315.0,0.22653655]
[1617537387317,0.10725655,57316.0,57315.0,0.22653655]
[1617537389219,0.10725655,57322.0,57315.0,0.22653655]
[1617537389819,0.10725655,57322.0,57315.0,0.10725655]
[1617537391021,0.10725655,57322.0,57321.0,2.9795]
[1617537391422,0.10725655,57322.0,57321.0,3.19537655]
[1617537392021,0.10725655,57322.0,57321.0,0.21587655]
[1617537393627,0.10725655,57322.0,57321.0,0.10725655]
[1617537394428,0.10725655,57322.0,57321.0,0.22676655]
[1617537397332,0.10725655,57322.0,57321.0,0.10725655]
[1617537397531,0.21618655,57322.0,57303.0,3.2623]
[1617537398732,0.21618655,57322.0,57307.0,1.0]
[1617537398733,0.10725655,57322.0,57307.0,1.0]
[1617537398930,0.10725655,57322.0,57308.0,1.0]
[1617537399331,4.62392558,57334.0,57311.0,0.10725655]
[1617537399530,0.14686,57333.0,57311.0,0.10725655]
[1617537399732,1.0,57332.0,57311.0,0.10725655]
[1617537400130,1.14686,57333.0,57311.0,0.10725655]
[1617537400331,0.00202427,57332.0,57311.0,0.10725655]
[1617537400732,1.14686,57333.0,57311.0,0.10725655]
[1617537400931,0.14686,57333.0,57311.0,0.10725655]
[1617537401131,0.14888503,57333.0,57311.0,0.10725655]
[1617537401331,0.10725655,57312.0,57311.0,0.10725655]
[1617537401532,0.26164655,57312.0,57303.0,4.2623]
[1617537401731,0.26164655,57312.0,57297.0,0.4533]
[1617537402834,0.26164655,57312.0,57298.0,0.2]
[1617537403435,0.15439,57312.0,57302.0,0.10725655]
[1617537405338,0.10725655,57303.0,57302.0,0.10725655]
[1617537405538,0.10705655,57303.0,57302.0,0.10725655]
[1617537413049,0.10705655,57303.0,57288.0,0.4806]
[1617537413451,1.15439,57312.0,57292.0,0.10725655]
[1617537413651,1.0,57313.0,57292.0,0.10725655]
[1617537414252,1.00203117,57314.0,57292.0,0.10725655]
[1617537414452,0.00204217,57309.0,57292.0,0.10725655]
[1617537414852,0.29183622,57312.0,57292.0,0.10725655]
[1617537414853,0.0020432,57312.0,57292.0,0.10725655]
[1617537415053,0.0020432,57312.0,57296.0,1.0]
[1617537415451,0.10725655,57297.0,57292.0,0.10725655]
[1617537417953,0.10725655,57297.0,57293.0,1.0]
[1617537418153,0.10725655,57297.0,57292.0,0.10725655]
[1617537418952,0.00204472,57312.0,57296.0,1.0]
[1617537419355,0.00204472,57312.0,57298.0,1.0]
[1617537419554,0.00204472,57312.0,57310.0,0.10725655]
[1617537419755,0.0020468,57313.0,57310.0,0.10725655]
[1617537419956,0.0020468,57313.0,57310.0,2.90015655]
[1617537420158,0.00204678,57312.0,57310.0,2.90015655]
[1617537420957,0.00204678,57312.0,57310.0,0.10725655]
[1617537421357,3.0861,57311.0,57310.0,0.10725655]
[1617537421557,3.19335655,57311.0,57310.0,0.10725655]
[1617537422560,0.10725655,57311.0,57310.0,0.10725655]
[1617537422960,0.10725655,57311.0,57310.0,2.79835655]
[1617537423362,0.10725655,57311.0,57310.0,3.79835655]
[1617537423563,0.10725655,57311.0,57310.0,2.79835655]
[1617537423762,0.10725655,57311.0,57310.0,3.79835655]
[1617537423962,0.10725655,57311.0,57310.0,0.10725655]
[1617537424562,0.10725655,57311.0,57310.0,1.10725655]
[1617537424763,0.10725655,57311.0,57310.0,0.10725655]
[1617537424965,0.10725655,57311.0,57310.0,1.10725655]
[1617537425163,0.10725655,57311.0,57310.0,4.19745655]
[1617537426365,0.11230989,57311.0,57310.0,4.19745655]
[1617537426765,0.11725979,57311.0,57310.0,4.19745655]
[1617537427166,0.11230704,57311.0,57310.0,4.32632655]
[1617537427866,0.11230704,57311.0,57310.0,3.32632655]
[1617537428064,0.11230704,57311.0,57310.0,4.32632655]
[1617537428265,0.10725655,57311.0,57310.0,4.32632655]
[1617537429567,0.10725655,57311.0,57310.0,3.32632655]
[1617537429767,0.10725655,57311.0,57310.0,3.19745655]
[1617537430370,0.40476514,57311.0,57310.0,3.31991655]
[1617537430568,0.40476514,57311.0,57310.0,4.31991655]
[1617537431068,0.10725655,57311.0,57310.0,4.31991655]
[1617537431468,0.1123298,57311.0,57310.0,4.31991655]
[1617537431870,0.11730443,57311.0,57310.0,4.31991655]
[1617537432871,0.11233325,57311.0,57310.0,4.31991655]
[1617537433270,0.11730977,57311.0,57310.0,4.31991655]
[1617537433669,0.40608478,57311.0,57310.0,4.31991655]
[1617537434670,0.11731604,57311.0,57310.0,4.68654034]
[1617537435471,0.01005949,57311.0,57310.0,4.68654034]
[1617537435671,0.01005949,57311.0,57310.0,4.88654034]
[1617537435872,0.01005949,57311.0,57310.0,4.68654034]
[1617537436771,0.01005949,57311.0,57310.0,6.18654034]
[1617537436972,0.29882748,57311.0,57310.0,6.18654034]
[1617537437171,0.29882748,57311.0,57310.0,3.09634034]
[1617537437371,0.29882748,57311.0,57310.0,6.59184034]
[1617537437573,0.00209419,57312.0,57310.0,1.04451536]
[1617537437773,0.12466419,57311.0,57310.0,0.47388034]
[1617537438373,0.77996581,57311.0,57310.0,0.10725655]
[1617537438974,1.02546491,57311.0,57310.0,0.10725655]
[1617537439172,1.02546491,57311.0,57307.0,1.2]
[1617537439373,1.02546491,57311.0,57307.0,0.2]
[1617537439575,0.10725655,57308.0,57304.0,0.36675481]
[1617537439978,0.29880097,57306.0,57303.0,0.36676318]
[1617537440376,0.29875866,57304.0,57302.0,0.36677023]
[1617537440777,0.29867196,57303.0,57301.0,0.36677914]
[1617537441379,0.29871319,57302.0,57300.0,0.36678815]
[1617537441580,0.10725655,57301.0,57300.0,0.36678815]
[1617537441781,0.40582489,57301.0,57299.0,0.36678921]
[1617537442181,0.29853334,57300.0,57299.0,0.36678921]
[1617537442481,0.65662097,57300.0,57296.0,0.36680875]
[1617537443088,0.65662097,57300.0,57292.0,0.44852181]
[1617537443089,0.65662097,57300.0,57295.0,0.36683842]
[1617537443487,0.65627901,57297.0,57293.0,0.36684839]
[1617537443697,0.80747901,57297.0,57293.0,0.36684839]
[1617537443887,0.80747901,57297.0,57292.0,0.0002]
[1617537443888,0.01004725,57294.0,57292.0,0.0002]
[1617537444687,0.00507146,57293.0,57292.0,0.36678528]
[1617537444896,3.72237146,57293.0,57292.0,0.36678528]
[1617537445303,3.7173,57293.0,57292.0,0.0002]
[1617537445688,3.83460159,57293.0,57292.0,0.0002]
[1617537446689,4.12299246,57293.0,57292.0,0.0002]
[1617537447491,4.48108187,57293.0,57292.0,0.0002]
[1617537464616,4.917972,57293.0,57292.0,0.0002]
[1617537465016,4.48108187,57293.0,57292.0,0.0002]
[1617537465418,4.91827193,57293.0,57292.0,0.0002]
[1617537467420,4.48108187,57293.0,57292.0,0.0002]
[1617537468322,4.91826826,57293.0,57292.0,0.0002]
[1617537468720,5.91826826,57293.0,57292.0,0.0002]
[1617537469521,4.91826826,57293.0,57292.0,0.0002]
[1617537469723,2.20096826,57293.0,57292.0,0.0002]
[1617537470323,4.19698436,57293.0,57292.0,0.0002]
[1617537470523,3.7378,57278.0,57274.0,0.36660998]
[1617537470723,3.7378,57278.0,57264.0,0.99478053]
[1617537470724,3.87331,57278.0,57272.0,0.36661387]
[1617537471123,0.29725801,57275.0,57268.0,0.36643666]
[1617537471524,0.00207983,57272.0,57268.0,0.36643666]
[1617537471723,0.10725655,57269.0,57268.0,0.36643666]
[1617537473625,3.29655655,57269.0,57268.0,0.36643666]
[1617537473826,3.43464655,57269.0,57268.0,0.36643666]
[1617537474828,3.43444655,57269.0,57268.0,0.36643666]
[1617537475429,0.24514655,57269.0,57268.0,0.36643666]
[1617537475629,0.13809,57269.0,57268.0,0.36643666]
[1617537475829,0.0020806,57272.0,57268.0,0.36643666]
[1617537476228,0.0020806,57272.0,57269.0,0.36644653]
[1617537476428,2.8133,57270.0,57269.0,0.36644653]
[1617537476631,2.93155,57270.0,57267.0,0.36644737]
[1617537477036,2.93155,57270.0,57268.0,0.36645188]
[1617537477430,2.93155,57270.0,57267.0,0.36645214]
[1617537478032,2.93155,57270.0,57268.0,0.366453]
[1617537478230,0.10725655,57269.0,57268.0,0.366453]
[1617537478431,0.10725655,57269.0,57260.0,0.10725655]
[1617537478432,0.10725655,57269.0,57266.0,0.36645444]
[1617537478832,0.10725655,57269.0,57262.0,0.3657166]
[1617537480332,0.10725655,57263.0,57262.0,0.3657166]
[1617537480532,0.10725655,57263.0,57258.0,0.36577479]
[1617537480732,3.58115655,57263.0,57258.0,0.36577479]
[1617537481132,0.00207646,57261.0,57256.0,0.0002]
[1617537481532,0.00207594,57259.0,57256.0,0.0002]
[1617537482131,0.00187594,57259.0,57256.0,0.0002]
[1617537482332,0.22301655,57257.0,57256.0,0.0002]
[1617537483132,0.51900647,57257.0,57256.0,0.0002]
[1617537485835,0.51900647,57257.0,57239.0,0.27835842]
[1617537486036,2.61898668,57257.0,57235.0,0.26704603]
[1617537486236,0.10725655,57236.0,57235.0,0.16830082]
[1617537486436,0.10725655,57236.0,57231.0,0.44705512]
[1617537486437,1.60725655,57236.0,57217.0,0.56897924]
[1617537486641,1.60725655,57236.0,57213.0,0.44720886]
[1617537486836,2.60725655,57236.0,57213.0,0.44720886]
[1617537487039,0.72254284,57227.0,57207.0,0.0002]
[1617537487238,2.37916316,57227.0,57207.0,0.0002]
[1617537487437,2.92578606,57227.0,57207.0,0.0002]
[1617537487636,1.0,57208.0,57207.0,0.0002]
[1617537487836,1.0,57210.0,57207.0,0.0002]
[1617537488037,0.72188101,57208.0,57207.0,0.0002]
[1617537488237,0.82913756,57208.0,57207.0,0.0002]
[1617537488437,1.31667055,57208.0,57207.0,0.0002]
[1617537489239,1.56263104,57208.0,57207.0,0.0002]
[1617537489440,1.07509805,57208.0,57207.0,0.0002]
[1617537489839,4.25259805,57208.0,57207.0,0.0002]
[1617537490040,4.74027674,57208.0,57207.0,0.0002]
[1617537490441,3.28475655,57208.0,57207.0,0.0002]
[1617537491148,3.1775,57208.0,57207.0,0.0002]
[1617537491559,0.14214,57214.0,57207.0,0.0002]
[1617537491790,0.00490562,57220.0,57211.0,3.3389]
[1617537492170,0.00490728,57221.0,57213.0,1.0]
[1617537492368,0.00490728,57221.0,57215.0,0.10725655]
[1617537492569,0.42346923,57231.0,57215.0,0.10725655]
[1617537492570,0.00491479,57230.0,57215.0,0.10725655]
[1617537492760,3.0575,57228.0,57215.0,0.10725655]
[1617537492969,3.0575,57228.0,57224.0,1.0]
[1617537493144,0.00491555,57231.0,57224.0,1.12317]
[1617537493345,0.0521,57288.0,57227.0,1.0]
[1617537493346,0.00491796,57234.0,57227.0,1.0]
[1617537493747,0.00491796,57234.0,57224.0,0.12317]
[1617537493946,0.00491902,57235.0,57224.0,0.12317]
[1617537494346,0.10725655,57225.0,57224.0,0.12317]
[1617537494546,0.10725655,57225.0,57215.0,0.10725655]
[1617537495146,0.21855655,57225.0,57207.0,0.0002]
[1617537495547,3.42218,57208.0,57207.0,0.0002]
[1617537496346,3.52943655,57208.0,57207.0,0.0002]
[1617537497548,3.52943655,57208.0,57199.0,1.0]
[1617537497751,1.73843655,57208.0,57196.0,1.0]
[1617537497949,2.8671,57197.0,57196.0,1.0]
[1617537498150,1.5,57196.0,57190.0,0.01]
[1617537498350,0.10725655,57191.0,57190.0,0.01]
[1617537498750,7.60725655,57191.0,57190.0,0.01]
[1617537499152,7.60725655,57191.0,57150.0,0.4642]
[1617537499153,7.89468423,57191.0,57150.0,0.4642]
[1617537499350,3.31141,57156.0,57150.0,0.4642]
[1617537499989,1.0,57151.0,57150.0,0.4642]
[1617537500352,0.10725655,57151.0,57150.0,0.4642]
[1617537500552,1.10725655,57151.0,57150.0,0.4642]
[1617537500954,3.98705655,57151.0,57150.0,0.4642]
[1617537501553,1.10725655,57151.0,57150.0,0.4642]
[1617537501961,0.10725655,57151.0,57150.0,0.4642]
[1617537502173,0.10725655,57151.0,57150.0,1.9642]
[1617537502368,0.10725655,57151.0,57150.0,2.07145655]
[1617537502559,3.6171,57168.0,57150.0,3.07145655]
[1617537502753,3.6171,57168.0,57150.0,3.18857655]
[1617537502954,3.6171,57168.0,57150.0,2.18857655]
[1617537503157,3.6171,57168.0,57150.0,3.18857655]
[1617537503556,3.6171,57168.0,57160.0,1.0]
[1617537503756,3.6171,57168.0,57153.0,1.0]
[1617537504157,3.6171,57168.0,57154.0,1.5]
[1617537504355,3.6171,57168.0,57167.0,0.25370655]
[1617537504556,3.6171,57168.0,57167.0,0.45370655]
[1617537504756,3.6171,57168.0,57167.0,0.25370655]
[1617537505158,3.6171,57168.0,57167.0,0.14645]
[1617537505455,3.6171,57168.0,57154.0,0.2]
[1617537505656,3.6171,57168.0,57155.0,1.5]
[1617537505855,3.6171,57168.0,57155.0,1.62476]
[1617537506057,3.6171,57168.0,57157.0,1.0]
[1617537506255,3.6171,57168.0,57161.0,0.10725655]
[1617537507762,3.6171,57168.0,57162.0,0.4846]
[1617537507963,3.6171,57168.0,57163.0,1.5]
[1617537508200,0.9997,57188.0,57163.0,1.5]
[1617537508398,1.0,57196.0,57175.0,0.10725655]
[1617537508603,3.3961,57198.0,57175.0,0.25696655]
[1617537508789,3.3961,57198.0,57175.0,2.75696655]
[1617537508960,3.3961,57198.0,57178.0,1.0]
[1617537509162,3.3961,57198.0,57182.0,1.0]
[1617537509361,3.3961,57198.0,57183.0,1.0]
[1617537509560,3.3961,57198.0,57185.0,1.0]
[1617537509761,3.3961,57198.0,57179.0,0.491]
[1617537509762,3.3961,57198.0,57188.0,1.0]
[1617537509961,0.00484173,57213.0,57188.0,1.5]
[1617537510162,0.00484173,57213.0,57187.0,1.12407]
[1617537510163,0.00484284,57214.0,57198.0,1.5]
[1617537510364,0.00484284,57214.0,57202.0,1.0]
[1617537510563,3.5842,57226.0,57202.0,1.04717265]
[1617537510564,0.0048477,57203.0,57202.0,1.04717265]
[1617537510763,0.0048477,57203.0,57202.0,0.14967]
[1617537510964,0.00484917,57206.0,57202.0,0.09842637]
[1617537511163,0.00484917,57206.0,57203.0,0.4832]
[1617537511364,0.00485093,57208.0,57203.0,0.4832]
[1617537511563,0.00485093,57208.0,57203.0,0.48217514]
[1617537511766,0.00484991,57207.0,57203.0,0.48217514]
[1617537512365,0.28538376,57209.0,57203.0,0.48217514]
[1617537512366,0.00485127,57209.0,57206.0,0.10725655]
[1617537514270,0.00485127,57209.0,57206.0,1.60725655]
[1617537514870,0.10725655,57210.0,57209.0,1.5]
[1617537515271,0.10725655,57210.0,57207.0,1.0]
[1617537515675,0.10725655,57210.0,57203.0,0.48217514]
[1617537516172,0.00486383,57209.0,57203.0,0.48217514]
[1617537516372,0.10725655,57204.0,57203.0,0.58943169]
[1617537517373,2.65995655,57204.0,57203.0,0.58943169]
[1617537517572,2.82684655,57204.0,57203.0,0.48217514]
[1617537517774,2.83646757,57204.0,57203.0,0.48217514]
[1617537518174,3.1126521,57204.0,57203.0,0.48217514]
[1617537518373,4.1126521,57204.0,57203.0,0.48217514]
[1617537518575,3.1126521,57204.0,57203.0,0.48217514]
[1617537518774,4.1126521,57204.0,57203.0,0.37968267]
[1617537519376,3.1126521,57204.0,57203.0,0.37968267]
[1617537520578,2.9457621,57204.0,57203.0,0.37968267]
[1617537521176,2.9457621,57204.0,57203.0,0.32843624]
[1617537521576,2.9457621,57204.0,57203.0,0.32741133]
[1617537521777,2.66957054,57204.0,57203.0,0.32741133]
[1617537522177,2.94557735,57204.0,57203.0,0.32741133]
[1617537522777,2.66957045,57204.0,57203.0,0.32741133]
[1617537523179,2.94559106,57204.0,57203.0,0.32741133]
[1617537525277,3.94559106,57204.0,57203.0,0.32741133]
[1617537525679,2.94559106,57204.0,57203.0,0.32741133]
[1617537527081,2.94559106,57204.0,57203.0,0.22491787]
[1617537528382,3.08508106,57204.0,57203.0,0.22491787]
[1617537528582,3.42893436,57204.0,57203.0,0.22491787]
[1617537529814,4.42893436,57204.0,57203.0,0.22491787]
[1617537530385,6.12893436,57204.0,57203.0,0.22491787]
[1617537530585,6.54813539,57204.0,57203.0,0.22491787]
[1617537530987,7.02403587,57204.0,57203.0,0.22491787]
[1617537531597,7.02403587,57204.0,57203.0,0.17365579]
[1617537531799,7.02403587,57204.0,57203.0,0.01986351]
[1617537532189,7.02403587,57204.0,57156.0,0.4828]
[1617537532390,9.47133587,57204.0,57156.0,0.4828]
[1617537532590,0.21831655,57157.0,57156.0,0.4828]
[1617537532788,1.0,57156.0,57137.0,0.10725655]
[1617537532987,4.19111655,57157.0,57137.0,0.10725655]
[1617537533188,1.0,57156.0,57137.0,0.10725655]
[1617537533788,4.08005655,57157.0,57138.0,1.5]
[1617537533989,4.08005655,57157.0,57142.0,1.0]
[1617537533990,3.08005655,57157.0,57142.0,1.0]
[1617537534189,3.08005655,57157.0,57143.0,1.7]
[1617537534390,0.10725655,57157.0,57146.0,1.7]
[1617537534589,0.10725655,57157.0,57156.0,0.10725655]
[1617537534791,0.10725655,57157.0,57156.0,0.26352655]
[1617537535789,0.10725655,57157.0,57156.0,0.46352655]
[1617537536390,0.10725655,57157.0,57156.0,0.26352655]
[1617537536990,0.10725655,57157.0,57156.0,0.10725655]
[1617537537591,0.10725655,57157.0,57156.0,0.30725655]
[1617537538501,3.4941,57160.0,57156.0,2.92155655]
[1617537538700,0.10725655,57167.0,57156.0,2.92155655]
[1617537538896,0.00489852,57172.0,57156.0,1.92155655]
[1617537539102,0.00489852,57172.0,57166.0,1.0]
[1617537539292,0.42271342,57182.0,57167.0,1.7]
[1617537539293,0.00490715,57182.0,57167.0,1.7]
[1617537539491,0.00490715,57182.0,57172.0,1.0]
[1617537539693,0.28875213,57184.0,57173.0,0.2]
[1617537539694,0.0049088,57184.0,57173.0,0.2]
[1617537539896,0.0049088,57184.0,57174.0,1.5]
[1617537540102,0.0049088,57184.0,57175.0,0.2]
[1617537540301,0.00491335,57185.0,57175.0,0.2]
[1617537540524,0.00491335,57185.0,57184.0,0.10725655]
[1617537540717,0.00491812,57186.0,57184.0,0.10725655]
[1617537540947,0.00491812,57186.0,57184.0,1.75703655]
[1617537541125,0.004919,57188.0,57184.0,2.75703655]
[1617537541508,0.004919,57188.0,57186.0,1.5]
[1617537541701,0.004919,57188.0,57187.0,2.7]
[1617537541899,0.00493211,57196.0,57187.0,2.7]
[1617537542296,0.00493191,57197.0,57189.0,0.2]
[1617537542497,0.00493191,57197.0,57196.0,0.10725655]
[1617537542697,0.00493191,57197.0,57196.0,0.47431655]
[1617537543597,0.00493307,57198.0,57196.0,1.97431655]
[1617537543999,0.2902775,57200.0,57196.0,2.97431655]
[1617537544197,0.00493894,57204.0,57196.0,2.97431655]
[1617537544399,0.00493894,57204.0,57198.0,1.7]
[1617537544600,0.42620105,57214.0,57196.0,0.27431655]
[1617537544601,0.00494261,57207.0,57203.0,0.10725655]
[1617537545000,0.0049412,57205.0,57203.0,0.10725655]
[1617537545400,0.0049412,57205.0,57204.0,0.2]
[1617537545801,0.00978431,57205.0,57204.0,0.2]
[1617537546404,3.2056,57210.0,57204.0,0.2]
[1617537546601,0.10725655,57205.0,57204.0,0.2]
[1617537547402,0.10725655,57205.0,57204.0,2.7]
[1617537547802,0.10725655,57205.0,57204.0,1.7]
[1617537548004,0.10725655,57205.0,57204.0,0.2]
[1617537549705,0.10725655,57205.0,57204.0,2.7]
[1617537550406,0.00495867,57211.0,57204.0,2.7]
[1617537550606,0.00495867,57211.0,57210.0,0.10725655]
[1617537550806,0.00495457,57213.0,57210.0,2.95592655]
[1617537551208,0.00495457,57213.0,57211.0,1.0]
[1617537551409,0.00496139,57217.0,57212.0,1.7]
[1617537551611,0.00496139,57217.0,57212.0,2.7]
[1617537551810,0.00496543,57221.0,57216.0,1.0]
[1617537552009,0.00496543,57221.0,57217.0,1.7]
[1617537552209,0.00497171,57226.0,57217.0,2.7]
[1617537552532,0.00497171,57226.0,57225.0,0.10725655]
[1617537552709,0.00497171,57226.0,57225.0,1.80725655]
[1617537552911,0.00498067,57229.0,57225.0,2.92154655]
[1617537553309,0.0049907,57233.0,57226.0,1.0]
[1617537553513,0.0049907,57233.0,57227.0,1.7]
[1617537553728,0.00988353,57234.0,57228.0,1.0]
[1617537553729,0.00498317,57234.0,57228.0,1.0]
[1617537553936,0.00498317,57234.0,57229.0,1.7]
[1617537554130,0.00498317,57234.0,57232.0,1.0]
[1617537554339,0.00498317,57234.0,57233.0,2.7]
[1617537554534,0.00498194,57238.0,57233.0,2.7]
[1617537554748,0.00498194,57238.0,57233.0,2.80725655]
[1617537554936,0.0098662,57239.0,57234.0,1.0]
[1617537554937,0.00498018,57239.0,57234.0,1.0]